bitfinex/quotes_ETHUSD_20251213
["timestamp","ask_amount","ask_price","bid_price","bid_amount"]
[1765622639957,0.4543,3135.3,3134.9,0.58047529]
[1765622640255,0.0947,3135.0,3134.8,0.407]
[1765622640463,0.0045,3134.9,3134.8,0.407]
[1765622641559,0.4543,3136.2,3135.0,0.58047529]
[1765622641861,0.29838586,3135.7,3135.1,3.18969091]
[1765622642155,0.29838586,3135.6,3135.0,1.53833428]
[1765622642355,3.55343473,3135.7,3135.0,1.53833428]
[1765622642356,0.0947,3135.1,3135.0,0.95785899]
[1765622642555,0.0947,3135.1,3134.5,0.002]
[1765622642556,0.39314159,3135.1,3134.5,0.58247529]
[1765622642756,0.505,3135.6,3134.8,3.18998761]
[1765622642757,0.30294644,3135.0,3134.8,3.18998761]
[1765622642960,0.505,3135.6,3134.8,3.18998761]
[1765622642961,0.29844644,3134.9,3134.8,3.18998761]
[1765622643165,0.29844644,3134.9,3134.8,3.7704629]
[1765622643454,3.55343473,3135.7,3134.9,0.58047529]
[1765622643763,0.29846308,3135.6,3135.0,0.505]
[1765622644060,0.29846308,3135.5,3135.1,3.18969091]
[1765622644255,0.29846308,3135.4,3135.1,3.84059091]
[1765622644434,0.29846308,3135.3,3135.2,0.4705]
[1765622645462,0.29846308,3135.3,3135.2,0.4205]
[1765622645664,0.29846308,3135.3,3135.2,0.875]
[1765622648441,0.79516308,3135.3,3135.0,2.04335569]
[1765622648638,0.29846308,3135.2,3135.0,2.04335569]
[1765622648838,0.29846308,3135.1,3135.0,2.04335569]
[1765622649858,0.29846308,3135.1,3135.0,5.23314835]
[1765622650038,0.29846308,3135.1,3135.0,5.68764835]
[1765622650239,12.16127831,3135.1,3134.5,0.002]
[1765622650537,1.56729091,3135.0,3134.5,0.002]
[1765622650739,0.29846308,3134.9,3134.5,0.002]
[1765622650967,0.29846308,3134.8,3134.5,0.002]
[1765622651166,1.21612783,3135.0,3134.5,0.002]
[1765622651167,0.29846308,3134.7,3134.5,0.002]
[1765622651379,0.29846308,3134.6,3134.5,0.002]
[1765622651743,0.29846308,3134.6,3134.5,0.4565]
[1765622652737,3.58336278,3134.6,3134.5,0.002]
[1765622652933,3.94169906,3134.6,3134.5,0.002]
[1765622654640,4.39239906,3134.6,3134.5,0.002]
[1765622655040,3.94169906,3134.6,3134.5,0.002]
[1765622656370,0.75149936,3134.6,3134.5,0.002]
[1765622656577,0.75149936,3134.6,3134.1,6.51008218]
[1765622656873,3.19000056,3134.8,3134.5,0.4545]
[1765622657062,0.29804829,3134.7,3134.5,0.4545]
[1765622657264,0.29804829,3134.6,3134.5,0.4545]
[1765622657468,0.79474829,3134.6,3134.1,2.84887529]
[1765622657776,0.29804829,3134.5,3134.1,2.66847529]
[1765622657978,6.83430112,3134.8,3134.1,3.13897529]
[1765622658181,1.04191896,3134.7,3134.1,3.13897529]
[1765622658379,0.29798885,3134.6,3134.1,3.13897529]
[1765622658681,0.29798885,3134.5,3134.1,3.13897529]
[1765622658878,3.9341108,3134.7,3134.1,6.32966989]
[1765622659075,0.29793846,3134.6,3134.1,6.03956989]
[1765622659261,0.29793846,3134.5,3134.2,0.4705]
[1765622659465,3.19018069,3134.7,3134.2,0.4705]
[1765622659660,0.29789529,3134.6,3134.2,0.4705]
[1765622659964,0.29789529,3134.5,3134.2,0.4705]
[1765622660151,3.64448069,3134.7,3134.2,0.4705]
[1765622660351,0.29788441,3134.6,3134.2,0.4705]
[1765622660548,0.2978844,3134.5,3134.2,0.4705]
[1765622660780,4.38842048,3134.7,3134.2,0.4705]
[1765622661005,0.29788439,3134.6,3134.2,0.4705]
[1765622661187,0.29788439,3134.5,3134.2,0.4705]
[1765622661389,4.38842048,3134.7,3134.2,0.4705]
[1765622661684,0.2978964,3134.6,3134.2,0.4705]
[1765622661889,0.2978964,3134.5,3134.2,0.4705]
[1765622662070,0.4967,3134.3,3134.1,2.66847529]
[1765622662266,0.4967,3134.2,3134.1,2.66847529]
[1765622664172,0.46863436,3134.5,3134.1,2.61797529]
[1765622664377,0.505,3134.7,3134.4,0.4545]
[1765622664682,0.29795558,3134.6,3134.4,0.4545]
[1765622664884,0.29795558,3134.5,3134.4,0.9098]
[1765622666409,0.29795558,3134.5,3134.4,0.4545]
[1765622666983,0.39265558,3134.5,3134.1,2.16347529]
[1765622667196,0.0947,3134.5,3134.1,5.35417723]
[1765622667562,0.0947,3134.5,3134.1,5.83927723]
[1765622669294,0.29801734,3134.4,3134.1,5.83927723]
[1765622669483,0.0947,3134.5,3134.1,5.83927723]
[1765622669778,0.29801735,3134.4,3134.1,5.83927723]
[1765622669985,0.0947,3134.5,3134.1,5.83927723]
[1765622670162,0.29801735,3134.4,3134.1,5.83927723]
[1765622670364,3.64084019,3134.7,3134.1,5.83927723]
[1765622670565,0.29802763,3134.6,3134.1,6.03377723]
[1765622670780,0.29802763,3134.5,3134.1,6.03377723]
[1765622670963,0.69307454,3134.7,3134.1,6.03377723]
[1765622671162,0.29802135,3134.6,3134.1,6.03377723]
[1765622671501,0.29802135,3134.5,3134.1,6.03377723]
[1765622671675,0.69307454,3134.7,3134.1,6.03377723]
[1765622671976,0.29803216,3134.6,3134.1,6.03377723]
[1765622672173,0.29803216,3134.5,3134.1,6.03377723]
[1765622672370,3.19004147,3134.8,3134.3,0.58047529]
[1765622672595,0.99220375,3134.7,3134.3,0.58047529]
[1765622672794,0.29808908,3134.6,3134.3,0.58047529]
[1765622672991,0.29808908,3134.5,3134.2,0.4851]
[1765622673198,0.29808908,3134.4,3134.1,5.54861252]
[1765622673403,1.15531467,3134.7,3134.1,2.35797529]
[1765622673695,1.05165491,3134.6,3134.1,2.35797529]
[1765622673896,0.29811314,3134.5,3134.1,2.35797529]
[1765622674194,0.29811314,3134.4,3134.1,2.35797529]
[1765622674493,0.4612,3134.5,3134.1,2.16347529]
[1765622674696,0.29817045,3134.4,3134.1,2.16347529]
[1765622674862,0.29817045,3134.3,3134.1,2.16347529]
[1765622675068,3.7511219,3134.9,3134.2,0.4851]
[1765622675367,0.29822958,3134.8,3134.2,1.51807529]
[1765622675594,0.29822958,3134.7,3134.2,1.51807529]
[1765622675793,0.29822958,3134.6,3134.2,1.51807529]
[1765622676095,0.29822958,3134.5,3134.2,1.51807529]
[1765622676300,0.29822958,3134.4,3134.2,1.51807529]
[1765622676467,3.19006661,3134.8,3134.3,0.9376]
[1765622676668,0.99241488,3134.7,3134.3,0.9376]
[1765622676977,0.29829845,3134.6,3134.3,0.9376]
[1765622677179,0.69411643,3134.7,3134.3,0.9376]
[1765622677180,0.29829845,3134.5,3134.3,0.4525]
[1765622677377,0.29829845,3134.4,3134.3,0.4525]
[1765622679175,0.29829845,3134.4,3134.3,3.64300505]
[1765622679381,0.29829845,3134.4,3134.3,4.12810505]
[1765622679699,0.29829845,3134.4,3134.3,4.70858034]
[1765622685176,0.29829845,3134.4,3134.3,4.22348034]
[1765622685503,0.29829845,3134.4,3134.3,4.70858034]
[1765622688080,0.29829845,3134.4,3134.3,1.51807529]
[1765622688609,0.29829845,3134.4,3134.3,4.70858034]
[1765622689617,0.29829845,3134.4,3134.3,9.59623193]
[1765622690309,0.299074,3134.4,3134.3,9.59623193]
[1765622691606,0.299074,3134.4,3134.3,4.70858034]
[1765622691826,0.299074,3134.4,3134.3,1.03297529]
[1765622692521,0.299074,3134.4,3134.3,1.53797529]
[1765622692986,0.299074,3134.4,3134.3,4.72848034]
[1765622693616,0.299074,3134.4,3134.3,1.53797529]
[1765622694321,0.299074,3134.4,3134.3,5.21358034]
[1765622695315,0.299074,3134.4,3134.3,10.10123193]
[1765622695606,0.299074,3134.4,3134.3,10.56243193]
[1765622696120,0.552,3135.0,3134.3,13.75293698]
[1765622696412,0.29895907,3134.9,3134.3,13.75293698]
[1765622696711,0.29895907,3134.8,3134.3,13.75293698]
[1765622696891,0.29895907,3134.7,3134.3,13.75293698]
[1765622697089,0.29895907,3134.6,3134.3,13.75293698]
[1765622697294,0.97667363,3135.0,3134.3,13.75293698]
[1765622697295,0.29895907,3134.5,3134.3,13.75293698]
[1765622697613,0.452,3134.9,3134.4,0.4506]
[1765622697913,0.29892891,3134.8,3134.4,0.9202]
[1765622698091,0.29892891,3134.7,3134.4,0.9202]
[1765622698293,0.29892891,3134.6,3134.4,0.9202]
[1765622698493,0.29892891,3134.5,3134.4,0.9202]
[1765622698994,0.29892891,3134.5,3134.4,0.4696]
[1765622699194,0.29892891,3134.5,3134.4,4.11060326]
[1765622700592,0.39592891,3134.5,3134.3,4.7371447]
[1765622700789,0.0045,3134.4,3134.3,4.7371447]
[1765622703490,0.452,3134.7,3134.3,4.7371447]
[1765622703690,0.29885528,3134.6,3134.3,4.7371447]
[1765622703891,0.29885528,3134.5,3134.3,4.7371447]
[1765622704201,0.1,3135.0,3134.4,0.4506]
[1765622704402,0.67833476,3134.9,3134.4,0.9202]
[1765622704716,0.29886291,3134.8,3134.4,0.4696]
[1765622704925,0.29886291,3134.7,3134.4,0.4696]
[1765622705088,0.29886291,3134.6,3134.4,0.4696]
[1765622705288,0.29886291,3134.5,3134.4,0.4696]
[1765622705720,0.29886291,3134.5,3134.4,3.66000326]
[1765622707008,0.29886291,3134.5,3134.4,4.11060326]
[1765622707214,0.39586291,3134.5,3134.4,3.19040326]
[1765622707522,0.29886291,3134.5,3134.4,3.19040326]
[1765622707725,0.39586291,3134.5,3134.4,3.19040326]
[1765622707899,0.39586291,3134.5,3134.3,0.505]
[1765622708228,0.30336291,3134.4,3134.3,0.505]
[1765622708395,0.30336291,3134.4,3134.1,3.19269959]
[1765622708717,0.097,3134.2,3134.1,0.002]
[1765622708894,0.39586291,3134.2,3134.1,0.58247529]
[1765622709093,0.39586291,3134.2,3134.1,0.002]
[1765622709324,0.39586291,3134.2,3134.1,1.54063409]
[1765622710207,0.84436291,3134.2,3134.1,4.73134274]
[1765622710419,0.39586291,3134.2,3134.1,4.73134274]
[1765622711002,0.84436291,3134.2,3134.1,0.9601588]
[1765622711321,0.84436291,3134.2,3134.1,0.002]
[1765622711322,4.60817121,3134.2,3134.1,0.002]
[1765622711631,9.4958228,3134.2,3134.1,0.002]
[1765622712508,4.60817121,3134.2,3134.1,0.002]
[1765622712711,1.41756436,3134.2,3134.1,0.002]
[1765622712918,0.96906436,3134.2,3134.1,0.002]
[1765622713132,4.60817121,3134.2,3134.1,0.002]
[1765622715098,9.4958228,3134.2,3134.1,0.002]
[1765622718431,9.49933573,3134.2,3134.1,0.002]
[1765622722422,9.49857898,3134.2,3134.1,0.002]
[1765622725808,23.93686698,3134.2,3134.1,0.002]
[1765622726022,24.89548197,3134.2,3134.0,1.625]
[1765622726232,3.72250662,3134.1,3134.0,1.625]
[1765622726535,0.85405332,3134.1,3134.0,1.625]
[1765622726733,1.81266831,3134.1,3134.0,1.625]
[1765622727435,9.89454148,3134.1,3134.0,1.625]
[1765622728808,10.39854148,3134.1,3134.0,1.625]
[1765622730316,9.43992649,3134.1,3134.0,1.625]
[1765622730519,0.09444716,3133.9,3133.8,0.002]
[1765622730712,10.45138236,3133.9,3133.8,0.002]
[1765622730912,11.48885765,3133.9,3133.8,0.002]
[1765622731120,11.61668237,3133.9,3133.8,0.002]
[1765622731526,14.80759465,3133.9,3133.8,0.002]
[1765622731814,16.79930704,3133.9,3133.8,0.002]
[1765622732115,33.34680513,3133.9,3133.8,0.002]
[1765622732323,32.35336713,3133.9,3133.8,0.002]
[1765622732524,0.0053,3133.3,3132.8,0.002]
[1765622732717,5.87773945,3133.2,3132.8,0.002]
[1765622732917,6.4655134,3133.2,3132.8,0.002]
[1765622733231,6.9225134,3133.2,3132.8,0.002]
[1765622733434,10.11413857,3133.2,3132.8,0.002]
[1765622733944,10.24197922,3133.2,3132.8,0.002]
[1765622734249,10.11413857,3133.2,3132.8,0.002]
[1765622735530,3.58417849,3133.2,3133.1,0.6611]
[1765622735734,3.58417849,3133.2,3133.1,1.1273]
[1765622735951,0.29810616,3133.2,3133.1,1.1273]
[1765622736520,3.48973133,3133.2,3133.1,1.1273]
[1765622737345,0.29810616,3133.2,3133.1,1.1273]
[1765622740317,0.29785317,3133.2,3133.1,1.1273]
[1765622741142,0.39230033,3133.2,3133.1,1.1273]
[1765622741920,0.39231989,3133.2,3133.1,1.1273]
[1765622743950,0.39231989,3133.2,3133.1,0.4708]
[1765622744441,0.39231989,3133.2,3133.1,0.937]
[1765622745651,3.58394506,3133.2,3133.1,0.937]
[1765622746253,3.58394506,3133.2,3133.1,1.1273]
[1765622751736,0.39231989,3133.2,3133.1,1.1273]
[1765622754262,3.58394506,3133.2,3133.1,1.1273]
[1765622756052,0.29787273,3133.2,3133.1,1.1273]
[1765622756766,0.29787273,3133.2,3133.1,4.31902704]
[1765622757443,0.29787273,3133.2,3133.1,5.27752871]
[1765622761775,0.09444716,3133.8,3133.1,5.858004]
[1765622761962,0.29874212,3133.7,3133.6,0.4949]
[1765622762140,0.29874212,3133.7,3133.3,4.89241815]
[1765622762341,3.19084154,3134.0,3133.6,1.09334716]
[1765622762542,0.67757578,3133.9,3133.6,1.09334716]
[1765622762850,0.29864691,3133.8,3133.6,1.09334716]
[1765622763056,0.09444716,3134.3,3133.8,0.4949]
[1765622763380,0.29865082,3134.2,3134.0,0.4949]
[1765622763545,0.29865082,3134.1,3134.0,0.4949]
[1765622764947,3.48935947,3134.1,3134.0,0.9883]
[1765622765146,3.48935947,3134.1,3134.0,0.4949]
[1765622765342,3.48935947,3134.1,3133.8,0.4934]
[1765622765574,0.39309798,3134.0,3133.8,0.4934]
[1765622765771,0.29865082,3133.9,3133.7,0.95831183]
[1765622766093,0.57559798,3133.8,3133.1,0.002]
[1765622766276,0.09814716,3133.4,3133.1,0.002]
[1765622766476,0.29865082,3133.3,3133.1,0.002]
[1765622766645,0.39309798,3133.2,3133.1,0.002]
[1765622767056,0.45309798,3133.2,3133.1,0.002]
[1765622767785,0.82700872,3133.2,3133.1,0.002]
[1765622768154,1.31840872,3133.2,3133.1,0.002]
[1765622769378,0.73256156,3133.2,3133.1,0.002]
[1765622769677,0.67256156,3133.2,3133.1,0.4969]
[1765622770569,0.76700872,3133.2,3133.1,0.4969]
[1765622771462,0.67256156,3133.2,3133.1,0.4969]
[1765622771864,0.67256156,3133.2,3133.1,0.002]
[1765622772065,0.73256156,3133.2,3133.1,0.002]
[1765622772465,0.67256156,3133.2,3133.1,0.4969]
[1765622773487,0.76700872,3133.2,3133.1,0.4969]
[1765622773681,3.95863389,3133.2,3133.1,0.4969]
[1765622773887,4.02293389,3133.2,3133.1,0.002]
[1765622774793,0.29865082,3133.2,3133.1,1.1809]
[1765622775357,0.29865082,3133.2,3133.1,0.4969]
[1765622776106,0.29865082,3133.2,3133.1,0.9903]
[1765622779804,3.98457599,3133.2,3133.1,0.002]
[1765622779997,4.71162149,3133.2,3133.1,0.002]
[1765622780308,1.51999632,3133.2,3133.1,0.002]
[1765622782680,1.02569632,3133.2,3133.1,0.4831]
[1765622783011,0.29865082,3133.2,3133.1,0.4831]
[1765622784081,0.29865082,3133.2,3133.1,0.9421]
[1765622785679,0.29865082,3133.2,3133.1,0.4831]
[1765622786082,3.49027599,3133.2,3133.1,0.4831]
[1765622786283,4.03447599,3133.2,3133.1,0.002]
[1765622786611,4.34561061,3133.2,3133.1,0.002]
[1765622786778,4.81691061,3133.2,3133.1,0.002]
[1765622789804,9.71169315,3133.2,3133.1,0.002]
[1765622792005,9.71186111,3133.2,3133.1,0.002]
[1765622795394,4.81691061,3133.2,3133.1,0.002]
[1765622795594,4.34561061,3133.2,3133.1,0.002]
[1765622795794,4.84961061,3133.2,3133.1,0.002]
[1765622796125,5.32091061,3133.2,3133.1,0.002]
[1765622798021,4.84961061,3133.2,3133.1,0.002]
[1765622799318,5.32091061,3133.2,3133.1,0.002]
[1765622800223,4.84961061,3133.2,3133.1,0.002]
[1765622800411,4.77671061,3133.2,3133.1,0.4917]
[1765622800722,5.32821061,3133.2,3133.1,0.002]
[1765622802927,8.51983578,3133.2,3132.9,0.002]
[1765622803110,4.99409766,3133.0,3132.9,0.002]
[1765622803294,5.29274848,3133.0,3132.9,0.002]
[1765622803494,8.95587739,3133.0,3132.9,0.002]
[1765622807400,8.48457739,3133.0,3132.9,0.002]
[1765622807607,8.98857739,3133.0,3132.9,0.002]
[1765622807818,10.78623589,3133.0,3132.9,0.002]
[1765622808144,11.25753589,3133.0,3132.9,0.002]
[1765622811034,10.28223589,3133.0,3132.9,0.002]
[1765622811236,10.78623589,3133.0,3132.9,0.002]
[1765622811403,5.29283823,3133.0,3132.9,0.002]
[1765622811733,3.99447973,3133.0,3132.9,0.002]
[1765622812111,4.07857973,3133.0,3132.9,0.002]
[1765622814232,4.54597973,3133.0,3132.9,0.002]
[1765622816043,4.54597973,3133.0,3132.8,0.002]
[1765622816247,5.97754848,3132.9,3132.8,0.002]
[1765622816444,7.27351355,3132.9,3132.8,0.002]
[1765622817947,7.27351355,3132.9,3132.6,0.002]
[1765622818136,0.14954716,3132.7,3132.6,0.002]
[1765622818336,0.44819798,3132.7,3132.6,0.002]
[1765622819119,0.95319798,3132.7,3132.6,0.002]
[1765622819449,2.87364034,3132.7,3132.6,0.002]
[1765622819645,2.38394034,3132.7,3132.6,0.002]
[1765622820152,5.57607492,3132.7,3132.6,0.002]
[1765622821548,10.47102542,3132.7,3132.6,0.002]
[1765622821736,10.96072542,3132.7,3132.6,0.002]
[1765622822844,5.57607492,3132.7,3132.6,0.002]
[1765622823044,6.06577492,3132.7,3132.6,0.002]
[1765622823216,5.57607492,3132.7,3132.6,0.002]
[1765622823418,6.06577492,3132.7,3132.6,0.002]
[1765622824046,5.07107492,3132.7,3132.6,0.002]
[1765622824220,3.58523256,3132.7,3132.6,0.9775]
[1765622824415,4.09023256,3132.7,3132.6,0.9775]
[1765622824618,4.14993256,3132.7,3132.6,0.002]
[1765622825046,9.04603664,3132.7,3132.6,0.002]
[1765622825344,9.53143664,3132.7,3132.6,0.002]
[1765622825549,10.4378248,3132.7,3132.6,0.002]
[1765622825748,10.9428248,3132.7,3132.6,0.002]
[1765622825949,6.04672072,3132.7,3132.6,0.002]
[1765622826950,5.56132072,3132.7,3132.6,0.002]
[1765622827353,5.50162072,3132.7,3132.6,0.4821]
[1765622829355,4.09023256,3132.7,3132.6,0.9775]
[1765622829559,3.58523256,3132.7,3132.6,0.9775]
[1765622829737,4.09023256,3132.7,3132.6,0.9775]
[1765622830255,3.58523256,3132.7,3132.6,0.9775]
[1765622830455,4.09023256,3132.7,3132.6,0.9775]
[1765622831231,4.95750031,3132.7,3132.6,0.9775]
[1765622832425,0.29865082,3132.7,3132.6,0.9775]
[1765622832626,3.4907854,3132.7,3132.6,0.9775]
[1765622833437,0.29865082,3132.7,3132.6,0.9775]
[1765622840163,0.29865082,3132.7,3132.6,0.4821]
[1765622840369,0.29865082,3132.7,3132.6,0.9775]
[1765622844971,0.29865082,3132.7,3132.6,0.4821]
[1765622845181,3.4907854,3132.7,3132.6,0.002]
[1765622845642,0.29865082,3132.7,3132.6,0.002]
[1765622845841,0.29865082,3132.7,3132.6,0.461]
[1765622846475,0.29865082,3132.7,3132.6,0.9332]
[1765622849462,0.29865082,3132.7,3132.6,0.461]
[1765622849862,0.29865082,3132.7,3132.6,0.9332]
[1765622858284,0.29865082,3132.7,3132.6,4.12543648]
[1765622858458,0.29865082,3132.7,3132.6,9.01913039]
[1765622860385,0.29865082,3132.7,3132.6,4.12543648]
[1765622861463,0.29865082,3132.7,3132.6,0.9332]
[1765622863083,0.29865082,3132.7,3132.6,4.12543648]
[1765622863287,0.29865082,3132.7,3132.6,0.9332]
[1765622864591,0.29865082,3132.7,3132.6,0.461]
[1765622865466,0.29865082,3132.7,3132.6,0.9332]
[1765622866269,0.29865082,3132.7,3132.6,0.461]
[1765622866876,0.37845082,3132.7,3132.6,0.002]
[1765622867074,0.29865082,3132.7,3132.6,0.002]
[1765622867396,0.29865082,3132.7,3132.6,0.461]
[1765622870490,0.29865082,3132.7,3132.6,0.9332]
[1765622870683,0.29865082,3132.7,3132.6,4.12543648]
[1765622875814,0.29865082,3132.7,3132.6,9.01749935]
[1765622879124,0.29865082,3132.7,3132.6,10.00347864]
[1765622879298,0.1961,3134.1,3132.7,0.98597929]
[1765622879485,0.29892001,3134.0,3133.5,4.89206287]
[1765622879797,0.29892001,3133.9,3133.5,4.89206287]
[1765622880003,0.29892001,3133.8,3133.5,5.34466287]
[1765622880168,0.29892001,3133.7,3133.5,8.53591438]
[1765622880363,0.29892001,3133.6,3133.5,8.08331438]
[1765622880564,0.29892001,3133.6,3133.5,8.66378967]
[1765622880902,0.001,3134.1,3133.7,3.19111593]
[1765622881067,0.29891302,3134.0,3133.7,3.19111593]
[1765622881267,0.001,3134.1,3133.7,3.19111593]
[1765622881268,0.29891302,3133.9,3133.8,0.4526]
[1765622881468,0.29891302,3133.9,3133.8,0.914]
[1765622882096,0.29891302,3133.9,3133.8,4.1050141]
[1765622882267,0.29891302,3133.9,3133.8,9.57755226]
[1765622882808,0.29891302,3133.9,3133.8,9.98305626]
[1765622883410,0.29891302,3133.9,3133.8,5.09099339]
[1765622883593,0.001,3134.1,3133.8,13.17407036]
[1765622883795,0.001,3134.1,3134.0,0.4614]
[1765622883997,0.2991091,3134.1,3134.0,4.10481046]
[1765622884386,0.001,3134.1,3134.0,4.10481046]
[1765622888214,0.001,3134.1,3134.0,4.68528575]
[1765622888900,0.001,3134.1,3134.0,9.57734862]
[1765622890284,0.001,3134.1,3134.0,4.23268575]
[1765622890786,0.001,3134.1,3134.0,4.68528575]
[1765622892323,0.001,3134.1,3134.0,4.23268575]
[1765622893201,0.5572,3134.1,3133.7,3.19104939]
[1765622893402,0.0048,3133.9,3133.7,3.19104939]
[1765622893591,0.0048,3133.9,3133.8,3.1910141]
[1765622893795,0.4833,3134.1,3133.8,3.1910141]
[1765622893995,0.001,3134.1,3133.8,3.6524141]
[1765622895049,0.001,3134.1,3134.0,0.4614]
[1765622895727,0.001,3134.1,3134.0,0.914]
[1765622896095,0.001,3134.1,3134.0,0.4614]
[1765622896300,0.001,3134.1,3134.0,3.65221046]
[1765622896929,0.0789,3134.1,3133.9,3.77134842]
[1765622897303,0.0789,3134.1,3134.0,3.19081046]
[1765622898627,0.0789,3134.1,3133.5,1.53707529]
[1765622898836,0.0789,3134.1,3133.9,0.58047529]
[1765622899348,0.0048,3134.0,3133.9,0.58047529]
[1765622901133,0.4871,3134.0,3133.9,0.58047529]
[1765622901719,0.4871,3134.0,3133.7,3.19107585]
[1765622901923,0.4871,3134.0,3133.8,0.58047529]
[1765622902207,0.4823,3134.0,3133.8,0.58047529]
[1765622902401,0.0779,3133.9,3133.8,3.77148939]
[1765622903433,0.001,3134.1,3133.8,4.71138939]
[1765622903755,0.001,3134.1,3133.9,0.4597]
[1765622904328,0.29772469,3134.0,3133.9,0.4597]
[1765622904737,0.29772469,3134.0,3133.9,3.65061228]
[1765622905451,0.29772469,3134.0,3133.9,0.4597]
[1765622905656,0.39892469,3134.0,3133.8,0.58047529]
[1765622905858,0.1012,3134.0,3133.8,0.58047529]
[1765622906160,0.1012,3134.0,3133.8,3.77145624]
[1765622906322,0.1012,3134.0,3133.9,3.19091228]
[1765622906523,0.3992176,3134.0,3133.9,3.19091228]
[1765622907557,0.2980176,3134.0,3133.9,3.68481228]
[1765622908659,0.2980176,3134.0,3133.9,4.17401228]
[1765622910139,0.3992176,3134.0,3133.9,3.19091228]
[1765622910339,0.2980176,3134.0,3133.9,3.68481228]
[1765622910730,0.2980176,3134.0,3133.9,4.17401228]
[1765622911063,0.2980176,3134.0,3133.9,3.68481228]
[1765622911464,0.7809176,3134.0,3133.9,3.19091228]
[1765622911636,0.7809176,3134.0,3133.8,3.77145396]
[1765622911823,0.001,3134.1,3133.8,3.77145396]
[1765622911824,0.9580176,3133.9,3133.8,3.77145396]
[1765622912232,1.0407176,3133.9,3133.8,3.77145396]
[1765622915239,0.9580176,3133.9,3133.8,3.77145396]
[1765622915448,0.7769176,3133.9,3133.8,3.77145396]
[1765622915775,0.2980176,3133.9,3133.8,3.77145396]
[1765622916564,0.7739176,3133.9,3133.8,3.77145396]
[1765622918255,0.8606176,3133.9,3133.8,3.77145396]
[1765622918454,0.8606176,3133.9,3133.8,0.58047529]
[1765622918844,0.2980176,3133.9,3133.8,0.58047529]
[1765622919066,0.4016176,3133.9,3133.8,3.77148939]
[1765622921205,0.2980176,3133.9,3133.8,3.77148939]
[1765622921612,0.2980176,3133.9,3133.8,4.26538939]
[1765622922806,0.2980176,3133.9,3133.8,4.75458939]
[1765622930806,0.2980176,3133.9,3133.8,9.64420067]
[1765622931814,0.2980176,3133.9,3133.8,4.75458939]
[1765622936184,0.2980176,3133.9,3133.8,5.29049953]
[1765622936616,0.001,3134.1,3133.9,0.58047529]
[1765622936913,0.001,3134.1,3134.0,5.37798485]
[1765622937081,0.30002166,3134.1,3134.0,5.82988485]
[1765622937403,0.30002166,3134.1,3134.0,6.23538885]
[1765622937583,0.30002166,3134.1,3134.0,1.346604]
[1765622937779,0.30002166,3134.1,3134.0,6.23538885]
[1765622939013,0.30002166,3134.1,3134.0,4.13191046]
[1765622939220,0.30002166,3134.1,3134.0,8.56879531]
[1765622939378,0.38722166,3134.1,3134.0,3.68001046]
[1765622939579,0.38722166,3134.1,3133.8,3.19091493]
[1765622939783,0.77332166,3134.0,3133.9,3.77138757]
[1765622940216,0.86052166,3134.0,3133.9,3.77138757]
[1765622940710,0.38622166,3134.0,3133.9,3.77138757]
[1765622941214,0.38601333,3134.0,3133.9,3.77138757]
[1765622944618,0.85651333,3134.0,3133.9,3.77138757]
[1765622945000,0.38601333,3134.0,3133.9,3.77138757]
[1765622945904,0.38602464,3134.0,3133.9,3.77138757]
[1765622947716,0.29882464,3134.0,3133.9,4.26058757]
[1765622947920,0.29882464,3134.0,3133.9,4.71248757]
[1765622955326,0.29882464,3134.0,3133.9,5.01131221]
[1765622956096,0.29882464,3134.0,3133.9,4.55941221]
[1765622956321,0.38602464,3134.0,3133.9,4.07021221]
[1765622957226,0.29882464,3134.0,3133.9,4.07021221]
[1765622957426,0.29882464,3134.0,3133.9,4.55941221]
[1765622958630,0.38602464,3134.0,3133.9,8.95899706]
[1765622958933,0.85652464,3134.0,3133.8,3.19100564]
[1765622959102,0.48282464,3133.9,3133.8,3.19100564]
[1765622959303,1.03762464,3133.9,3133.8,0.58047529]
[1765622963540,1.03762464,3133.9,3133.8,3.77148939]
[1765622964635,1.03762464,3133.9,3133.8,8.66027424]
[1765622965338,0.57102464,3133.9,3133.8,8.66027424]
[1765622965534,0.57102464,3133.9,3133.8,3.77148939]
[1765622965711,0.57102464,3133.9,3133.8,8.66027424]
[1765622966130,0.38702464,3133.9,3133.8,8.66027424]
[1765622966312,0.29882464,3133.9,3133.8,9.11397424]
[1765622967540,0.29882464,3133.9,3133.8,9.57417424]
[1765622968036,0.29882464,3133.9,3133.8,9.5735919]
[1765622968339,0.29882464,3133.9,3133.8,9.1133919]
[1765622968513,0.77832464,3133.9,3133.8,8.6596919]
[1765622970321,0.29882464,3133.9,3133.8,9.1133919]
[1765622970841,0.29882464,3133.9,3133.8,4.22518939]
[1765622971140,0.37702464,3133.9,3133.8,8.6596919]
[1765622972438,0.29882464,3133.9,3133.8,8.6596919]
[1765622972647,0.29882464,3133.9,3133.8,9.1133919]
[1765622974049,0.29882464,3133.9,3133.8,4.68538939]
[1765622975345,0.29882464,3133.9,3133.8,4.22518939]
[1765622975552,0.29882464,3133.9,3133.8,4.68538939]
[1765622976765,3.78867931,3134.6,3133.8,4.68538939]
[1765622976766,0.58047529,3151.2,3133.8,4.68538939]
[1765622977043,0.58047529,3151.2,3133.7,4.88848137]
[1765622977044,0.09444716,3134.8,3134.1,5.11122431]
[1765622977225,0.09444716,3134.8,3134.2,4.10274294]
[1765622978116,0.09444716,3134.8,3134.2,4.56294294]
[1765622978314,0.09444716,3134.8,3134.3,0.4602]
[1765622978545,0.09444716,3134.8,3134.4,4.88848137]
[1765622979448,0.09444716,3134.8,3134.5,3.19030148]
[1765622981444,0.09444716,3134.8,3134.7,5.85162519]
[1765622982046,0.09444716,3134.8,3134.7,9.73162519]
[1765622982446,0.09444716,3134.8,3134.7,12.92172312]
[1765622983650,0.09444716,3134.8,3134.7,9.73162519]
[1765622984246,0.09444716,3134.8,3134.7,3.88]
[1765622985460,23.34793577,3134.7,3134.5,5.85162519]
[1765622985627,0.09444716,3134.6,3134.5,5.85162519]
[1765622987824,17.49631058,3134.5,3134.4,3.19039476]
[1765622988028,17.49631058,3134.5,3134.4,9.04201995]
[1765622988745,17.79496074,3134.5,3134.4,9.04201995]
[1765622990957,17.79496074,3134.5,3134.4,13.37571995]
[1765622992166,17.79496074,3134.5,3134.4,13.83591995]
[1765622992963,17.79496074,3134.5,3134.4,13.37571995]
[1765622993169,17.79496074,3134.5,3134.4,13.83591995]